{"text_format":"1","workbook":"xlsx","n_sheets":1,"sheets":["Game"],"not_rendered":{"charts":0,"images":2,"macros":1,"external_links":0,"defined_names":1,"comments":0,"pivot_tables":0},"unopened":[],"bounds":{"document_bytes":16777216,"sheet_cells":100000,"rows_first":2000,"rows_last":500,"rows_between":2000,"halvings":0,"cell_chars":16384,"cell_head_chars":4096},"cells_cut":0,"cells_raw":0,"read":"whole","date_system":"1900"}

{"sheet":"Game","index":0,"n_rows":132,"n_cols":62,"rows_kept":132,"cut":false,"hidden":false,"merged":[[119,4,119,7],[118,4,118,7],[101,4,101,7],[12,28,12,31],[12,32,12,35],[21,12,21,27],[15,5,15,9],[20,15,20,25],[14,3,14,9],[15,3,15,4],[16,3,16,4],[17,3,17,4],[18,3,18,4],[16,5,16,9],[17,5,17,9],[18,5,18,9],[8,36,9,37],[0,3,0,8],[0,15,0,25],[5,28,6,31],[5,32,6,35],[8,28,9,35],[1,28,2,35],[0,30,0,35],[11,28,11,31],[101,48,101,51],[101,53,101,56],[13,28,13,31],[13,32,13,35],[15,28,15,35],[18,32,18,35],[18,37,18,42]]}
[null,null,null,"次回予定",null,null,null,null,null,null,null,null,null,null,null,"【TIT_Block_Down】",null,null,null,null,null,null,null,null,null,null,null,{"$f":"IF(A101=0,\"\",A101)","v":""},null,null,{"$f":"TODAY()","v":"2021-02-25"}]
[null,null,null,null,null,null,null,null,null,null,null,null,null,null,null,null,null,null,null,null,null,null,null,null,null,null,null,null,"ゲーム開始"]
[]
[]
[]
[null,null,null,null,null,null,null,null,null,null,null,null,null,null,null,null,null,null,null,null,null,null,null,null,null,null,null,null,"継続時間",null,null,null,"00:00:00"]
[]
[]
[null,null,null,null,null,null,null,null,null,null,null,null,null,null,null,null,null,null,null,null,null,null,null,null,null,null,null,null,0,null,null,null,null,null,null,null,"点"]
[]
[]
[null,null,null,null,null,null,null,null,null,null,null,null,null,null,null,null,null,null,null,null,null,null,null,null,null,null,null,null,"《最高点》"]
[null,null,null,null,null,null,null,null,null,null,null,null,null,null,null,null,null,null,null,null,null,null,null,null,null,null,null,null,"継続時間",null,null,null,"00:07:41"]
[null,null,null,null,null,null,null,null,null,null,null,null,null,null,null,null,null,null,null,null,null,null,null,null,null,null,null,null,"点数",null,null,null,270]
[null,null,null,"キー操作"]
[null,null,null,"←",null,"（左移動）",null,null,null,null,null,null,null,null,null,null,null,null,null,null,null,null,null,null,null,null,null,null,"初期化"]
[null,null,null,"→",null,"（右移動）"]
[null,null,null,"↑",null,"（左90℃回転）"]
[null,null,null,"↓",null,"（下2個移動）",null,null,null,null,null,null,null,null,null,null,null,null,null,null,null,null,null,null,null,null,null,null,null,null,null,null,"終了",null,null,null,null,"※Enterで強制終了"]
[]
[null,null,null,null,null,null,null,null,null,null,null,null,null,null,null,"株式会社つくばＩＴパートナー"]
[null,null,null,null,null,null,null,null,null,null,null,null,"Copyright © 2017 Tsukuba IT Partner Co., Ltd. All Rights Reserved."]
[]
[]
[]
[]
[]
[]
[]
[]
[]
[]
[]
[]
[]
[]
[]
[]
[]
[]
[]
[]
[]
[]
[]
[]
[]
[]
[]
[]
[]
[]
[]
[]
[]
[]
[]
[]
[]
[]
[]
[]
[]
[]
[]
[]
[]
[]
[]
[]
[]
[]
[]
[]
[]
[]
[]
[]
[]
[]
[]
[]
[]
[]
[]
[]
[]
[]
[]
[]
[]
[]
[]
[]
[]
[]
[]
[]
[]
[]
[null,null,null,null,null,null,null,null,null,null,null,null,null,null,null,null,null,null,null,null,null,null,null,null,null,null,{"$f":"COUNTIF(AA102:AB119,11)","v":0}]
[null,null,null,null,"次回図形",null,null,null,null,null,null,null,null,null,null,null,null,null,null,null,null,null,null,null,null,null,{"$f":"COUNTA(P102:Z102)","v":0},null,null,null,null,null,null,null,null,null,null,null,null,null,null,null,null,null,null,null,null,null,"【図形変動】",null,null,null,null,"【確定図形】"]
[null,null,null,null,null,null,null,null,null,null,null,null,null,null,null,null,null,null,null,null,null,null,null,null,null,null,0,null,null,null,null,null,null,null,null,null,null,null,null,null,null,null,null,null,null,null,null,null,null,null,"回転数",null,null,null,null,"回転数",null,null,null,null,"回転数"]
[null,null,null,null,null,null,null,null,null,null,null,null,null,null,null,null,null,null,null,null,null,null,null,null,null,null,0,null,null,null,null,null,null,null,null,null,null,null,null,null,null,null,null,null,null,null,null,null,null,null,{"$f":"RANDBETWEEN(0,3)","v":1},null,null,null,null,0,null,null,null,null,0]
[null,null,null,null,null,null,null,null,null,null,null,null,null,null,null,null,null,null,null,null,null,null,null,null,null,null,0,null,null,null,null,null,null,null,null,null,null,null,null,null,null,null,null,null,null,null,null,null,1,"T",{"$f":"$AY$4*104+1","v":1},1,null,1,"T",{"$f":"$BD$104*4+1","v":1},1,null,1,"T",{"$f":"$BI$104*4+1","v":1},1]
[null,null,null,null,null,null,null,null,null,null,null,null,null,null,null,null,null,null,null,null,null,null,null,null,null,null,0,null,null,null,null,null,null,null,null,null,null,null,null,null,null,null,null,null,null,null,null,null,{"$f":"AW105+1","v":2},"J",{"$f":"$AY$4*104+1","v":1},{"$f":"AZ105+4","v":5},null,{"$f":"BB105+1","v":2},"J",{"$f":"$BD$104*4+1","v":1},{"$f":"BE105+4","v":5},null,{"$f":"BG105+1","v":2},"J",{"$f":"$BI$104*4+1","v":1},{"$f":"BJ105+4","v":5}]
[null,null,"左上列位置",null,{"$f":"SUM(E109:E112)","v":0},{"$f":"SUM(F109:F112)","v":4},{"$f":"SUM(G109:G112)","v":8},{"$f":"SUM(H109:H112)","v":4},null,"右上列位置",null,null,null,null,null,null,null,null,null,null,null,null,null,null,null,null,0,null,null,null,null,null,null,null,null,null,null,null,null,null,null,null,null,null,null,null,null,null,{"$f":"AW106+1","v":3},"L",1,9,null,{"$f":"BB106+1","v":3},"L",1,9,null,{"$f":"BG106+1","v":3},"L",1,9]
[null,null,{"$f":"IF(E107<>0,E108,IF(F107<>0,F108,IF(G107<>0,G108,IF(H107<>0,H108,\"\"))))","v":20},{"$f":"IF(E107<>0,5,IF(F107<>0,6,IF(G107<>0,7,IF(H107<>0,8,\"\"))))","v":6},19,{"$f":"E108+1","v":20},{"$f":"F108+1","v":21},22,{"$f":"IF(H107<>0,8,IF(G107<>0,7,IF(F107<>0,6,IF(E107<>0,5,\"\"))))","v":8},{"$f":"IF(H107<>0,H108,IF(G107<>0,G108,IF(F107<>0,F108,IF(E107<>0,E108,\"\"))))","v":22},null,null,null,null,null,null,null,null,null,null,null,null,null,null,null,null,0,null,null,null,null,null,null,null,null,null,null,null,null,null,null,null,null,null,null,null,null,null,4,"Z",1,13,null,4,"Z",1,13,null,4,"Z",1,13]
[null,"ｾｯﾄ行",{"$f":"IF(E109<>\"\",E$108,IF(F109<>\"\",F$108,IF(G109<>\"\",G$108,IF(H109<>\"\",H$108,\"\"))))","v":20},101,null,4,4,null,{"$f":"SUM(E109:H109)","v":8},{"$f":"IF(H109<>\"\",H$108,IF(G109<>\"\",G$108,IF(F109<>\"\",F$108,IF(E109<>\"\",E$108,\"\"))))","v":21},null,null,null,null,null,null,null,null,null,null,null,null,null,null,null,null,0,null,null,null,null,null,null,null,null,null,null,null,null,null,null,null,null,null,null,null,null,null,5,"S",1,17,null,5,"S",1,17,null,5,"S",1,17]
[null,null,{"$f":"IF(E110<>\"\",E$108,IF(F110<>\"\",F$108,IF(G110<>\"\",G$108,IF(H110<>\"\",H$108,\"\"))))","v":21},{"$f":"D109+1","v":102},null,null,4,4,{"$f":"SUM(E110:H110)","v":8},{"$f":"IF(H110<>\"\",H$108,IF(G110<>\"\",G$108,IF(F110<>\"\",F$108,IF(E110<>\"\",E$108,\"\"))))","v":22},null,null,null,null,null,null,null,null,null,null,null,null,null,null,null,null,0,null,null,null,null,null,null,null,null,null,null,null,null,null,null,null,null,null,null,null,null,null,6,"I",1,21,null,6,"I",1,21,null,6,"I",1,21]
[null,null,{"$f":"IF(E111<>\"\",E$108,IF(F111<>\"\",F$108,IF(G111<>\"\",G$108,IF(H111<>\"\",H$108,\"\"))))","v":""},{"$f":"D110+1","v":103},null,null,null,null,{"$f":"SUM(E111:H111)","v":0},{"$f":"IF(H111<>\"\",H$108,IF(G111<>\"\",G$108,IF(F111<>\"\",F$108,IF(E111<>\"\",E$108,\"\"))))","v":""},null,null,null,null,null,null,null,null,null,null,null,null,null,null,null,null,0,null,null,null,null,null,null,null,null,null,null,null,null,null,null,null,null,null,null,null,null,null,7,"O",1,25,null,7,"O",1,25,null,7,"O",1,25]
[null,null,{"$f":"IF(E112<>\"\",E$108,IF(F112<>\"\",F$108,IF(G112<>\"\",G$108,IF(H112<>\"\",H$108,\"\"))))","v":""},104,null,null,null,null,0,{"$f":"IF(H112<>\"\",H$108,IF(G112<>\"\",G$108,IF(F112<>\"\",F$108,IF(E112<>\"\",E$108,\"\"))))","v":""},null,null,null,null,null,null,null,null,null,null,null,null,null,null,null,null,0,null,null,null,null,null,null,null,null,null,null,null,null,null,null,null,null,null,null,null,null,null,{"$f":"RANDBETWEEN(1,7)","v":6},{"$f":"VLOOKUP(AW112,AW105:AX111,2,FALSE)","v":"I"},{"$f":"VLOOKUP(AW112,AW105:AY111,3,FALSE)+116","v":117},{"$f":"VLOOKUP(AW112,AW105:AZ111,4,FALSE)+28","v":49},null,4,{"$f":"VLOOKUP(BB112,BB105:BC111,2,FALSE)","v":"Z"},{"$f":"VLOOKUP(BB112,BB105:BD111,3,FALSE)+116","v":117},{"$f":"VLOOKUP(BB112,BB105:BE111,4,FALSE)+28","v":41},null,7,{"$f":"VLOOKUP(BG112,BG105:BH111,2,FALSE)","v":"O"},{"$f":"VLOOKUP(BG112,BG105:BI111,3,FALSE)+116","v":117},{"$f":"VLOOKUP(BG112,BG105:BJ111,4,FALSE)+28","v":53}]
[null,null,null,null,{"$f":"IF(E112<>\"\",$D112,IF(E111<>\"\",$D111,IF(E110<>\"\",$D110,IF(E109<>\"\",$D109,\"\"))))","v":""},{"$f":"IF(F112<>\"\",$D112,IF(F111<>\"\",$D111,IF(F110<>\"\",$D110,IF(F109<>\"\",$D109,\"\"))))","v":101},102,102,{"$f":"IF(I112<>0,112,IF(I111<>0,111,IF(I110<>0,110,IF(I109<>0,109,\"\"))))","v":110},{"$f":"IF(I112<>0,D112,IF(I111<>0,D111,IF(I110<>0,D110,IF(I109<>0,D109,\"\"))))","v":102},null,null,null,null,null,null,null,null,null,null,null,null,null,null,null,null,0]
[null,null,null,null,null,null,null,null,null,"最下行",null,null,null,null,null,null,null,null,null,null,null,null,null,null,null,null,0]
[null,null,null,null,null,null,null,null,null,null,null,null,null,null,null,null,null,null,null,null,null,null,null,null,null,null,0]
[null,null,null,null,null,null,null,null,null,null,null,null,null,null,null,null,null,null,null,null,null,null,null,null,null,null,0,null,1,{"$f":"AC116+1","v":2},{"$f":"AD116+1","v":3},4,5,6,7,8,9,10,11,12,13,14,15,16,17,18,19,20,21,22,23,24,25,26,27,28]
[null,null,null,null,null,null,null,null,null,null,null,null,null,null,null,null,null,null,null,null,null,null,null,null,null,null,0,1,null,null,1,null,null,2,null,null,null,null,null,3,null,4,4,null,null,null,5,5,6,6,6,6,null,7,7]
[null,null,null,null,null,null,null,null,null,null,null,null,null,null,null,null,null,null,null,null,null,null,null,null,null,null,0,{"$f":"AB117+1","v":2},null,1,1,1,null,2,2,2,null,3,3,3,null,null,4,4,null,5,5,null,null,null,null,null,null,7,7]
[null,null,null,null,null,null,null,null,null,null,null,null,null,null,null,null,null,null,null,null,null,null,null,null,null,null,{"$f":"COUNTA(P119:Z119)","v":0},{"$f":"AB118+1","v":3}]
[null,null,null,null,"回転前図形",null,null,null,null,null,null,null,null,null,null,null,null,null,null,null,null,null,null,null,null,null,null,4]
[null,null,null,null,null,null,null,null,null,null,null,null,null,null,null,null,null,null,null,null,null,null,null,null,null,null,null,5,null,null,1,null,null,null,2,null,null,3,3,null,null,null,4,null,null,5,null,null,null,6,null,null,null,7,7]
[null,null,null,null,null,null,null,null,null,null,null,null,null,null,null,null,null,null,null,null,null,null,null,null,null,null,null,6,null,1,1,null,null,null,2,null,null,null,3,null,null,4,4,null,null,5,5,null,null,6,null,null,null,7,7]
[null,null,null,null,null,null,null,null,null,null,null,null,null,null,null,null,null,null,null,null,null,null,null,null,null,null,null,7,null,null,1,null,null,2,2,null,null,null,3,null,null,4,null,null,null,null,5,null,null,6]
[null,null,null,null,null,null,null,null,null,null,null,null,null,null,null,null,null,null,null,null,null,null,null,null,null,null,null,8,null,null,null,null,null,null,null,null,null,null,null,null,null,null,null,null,null,null,null,null,null,6]
[null,null,null,null,null,null,null,null,null,null,null,null,null,null,null,null,null,null,null,null,null,null,null,null,null,null,null,9,null,null,null,null,null,null,null,null,null,null,null,null,null,4,4,null,null,null,5,5,6,6,6,6,null,7,7]
[null,null,null,null,null,null,null,null,null,null,null,null,null,null,null,null,null,null,null,null,null,null,null,null,null,null,null,10,null,1,1,1,null,2,2,2,null,3,3,3,null,null,4,4,null,5,5,null,null,null,null,null,null,7,7]
[null,null,null,null,null,null,null,null,null,null,null,null,null,null,null,null,null,null,null,null,null,null,null,null,null,null,null,11,null,null,1,null,null,null,null,2,null,3]
[null,null,null,null,null,null,null,null,null,null,null,null,null,null,null,null,null,null,null,null,null,null,null,null,null,null,null,12]
[null,null,null,null,null,null,null,null,null,null,null,null,null,null,null,null,null,null,null,null,null,null,null,null,null,null,null,13,null,null,1,null,null,null,2,2,null,null,3,null,null,null,4,null,null,5,null,null,null,6,null,null,null,7,7]
[null,null,null,null,null,null,null,null,null,null,null,null,null,null,null,null,null,null,null,null,null,null,null,null,null,null,null,14,null,null,1,1,null,null,2,null,null,null,3,null,null,4,4,null,null,5,5,null,null,6,null,null,null,7,7]
[null,null,null,null,null,null,null,null,null,null,null,null,null,null,null,null,null,null,null,null,null,null,null,null,null,null,null,15,null,null,1,null,null,null,2,null,null,null,3,3,null,4,null,null,null,null,5,null,null,6]
[null,null,null,null,null,null,null,null,null,null,null,null,null,null,null,null,null,null,null,null,null,null,null,null,null,null,null,16,null,null,null,null,null,null,null,null,null,null,null,null,null,null,null,null,null,null,null,null,null,6]